[Event "AUT Bundesliga 2024-25"]
[Site "Austria"]
[Date "2025.04.03"]
[Round "7.35"]
[White "Haba, Petr"]
[Black "Hartl, Daniel"]
[Result "1/2-1/2"]
[Annotator "RC"]
[ECO "D10"]
[WhiteElo "2413"]
[BlackElo "2271"]
[PlyCount "61"]
[EventDate "2024.08.28"]
[EventType "team-tourn"]
[EventCountry "AUT"]
[SourceTitle "playchess.com"]
[Source "ChessBase"]
[SourceQuality "1"]
[TimeControl "40/5400+30:1800+30"]

1. d4 {[%emt 0:00:13]} d5 {[%emt 0:00:06]} 2. c4 {[%emt 0:00:14]} c6 {[%emt 0:00:06]} 3. Nc3 {[%emt 0:00:19]} dxc4 {[%emt 0:00:07]} 4. e3 {[%emt 0:00:27]} b5 {[%emt 0:00:27]} 5. a4 {[%emt 0:00:30]} b4 {[%emt 0:00:47]} 6. Ne4 {[%emt 0:00:24]} Qd5 {[%emt 0:00:32]} 7. Nd2 {[%emt 0:00:25]} c3 {[%emt 0:02:44]} 8. bxc3 {[%emt 0:00:20]} bxc3 {[%emt 0:00:07]} 9. Nb1 {[%emt 0:00:13]} Qa5 {[%emt 0:04:48]} 10. Qc2 {[%emt 0:00:48]} e6 {[%emt 0:00:42]} 11. Ba3 {[%emt 0:17:31]} Nf6 {[%emt 0:05:27]} 12. Bxf8 {[%emt 0:04:33]} Kxf8 {[%emt 0:00:07]} 13. Qxc3 {[%emt 0:00:06]} Qxc3+ {[%emt 0:00:58]} 14. Nxc3 {[%emt 0:00:02]} Nbd7 {[%emt 0:02:55]} 15. Rb1 {[%emt 0:03:49]} Rb8 {[%emt 0:10:10]} 16. Rxb8 {[%emt 0:01:47]} Nxb8 {[%emt 0:00:05]} 17. Nf3 {[%emt 0:00:08]} Nbd7 {[%emt 0:00:28]} 18. Be2 {[%emt 0:04:28]} Bb7 {[%emt 0:01:26]} 19. O-O {[%emt 0:19:41]} Ke7 {[%emt 0:00:54]} 20. Rc1 {[%emt 0:09:18]} c5 {[%emt 0:14:01]} 21. dxc5 {[%emt 0:04:08]} Nxc5 {[%emt 0:00:53]} 22. Nb5 {[%emt 0:04:05]} Nfd7 {[%emt 0:03:48]} 23. Ne5 {[%emt 0:02:44]} a6 {[%emt 0:07:23]} 24. Nxd7 {[%emt 0:06:50]} Nxd7 {[%emt 0:00:54]} 25. Na7 {[%emt 0:00:09]} Ra8 {[%emt 0:10:00]} 26. Nc6+ {[%emt 0:03:08]} Kd6 {[%emt 0:00:05]} 27. Na5 {[%emt 0:03:19]} Bd5 {[%emt 0:00:58]} 28. f3 {[%emt 0:00:42]} f5 {[%emt 0:00:42]} 29. Nc4+ {[%emt 0:03:18]} Bxc4 {[%emt 0:06:24]} 30. Rxc4 {[%emt 0:01:02]} Nc5 {[%emt 0:01:01]} 31. Rb4 {[%emt 0:00:31]} 1/2-1/2

[Event "AUT Bundesliga 2024-25"]
[Site "Austria"]
[Date "2025.04.03"]
[Round "7.36"]
[White "Steiner, Josef"]
[Black "Bures, Jaroslav"]
[Result "0-1"]
[Annotator "RC"]
[ECO "A30"]
[WhiteElo "2046"]
[BlackElo "2396"]
[PlyCount "152"]
[EventDate "2024.08.28"]
[EventType "team-tourn"]
[EventCountry "AUT"]
[SourceTitle "playchess.com"]
[Source "ChessBase"]
[SourceQuality "1"]
[TimeControl "40/5400+30:1800+30"]

1. Nf3 {[%emt 0:00:02]} c5 {[%emt 0:00:01]} 2. c4 {[%emt 0:00:35]} Nc6 {[%emt 0:00:09]} 3. d4 {[%emt 0:03:29]} cxd4 {[%emt 0:00:26]} 4. Nxd4 {[%emt 0:00:06]} g6 {[%emt 0:01:01]} 5. g3 {[%emt 0:01:30]} Bg7 {[%emt 0:00:12]} 6. Nxc6 {[%emt 0:00:22]} dxc6 {[%emt 0:10:14]} 7. Qc2 {[%emt 0:08:56]} Nf6 {[%emt 0:09:39]} 8. Bg2 {[%emt 0:00:58]} Be6 {[%emt 0:06:19]} 9. O-O {[%emt 0:01:31]} Qd4 {[%emt 0:05:00]} 10. Nd2 {[%emt 0:13:54]} O-O-O {[%emt 0:15:40]} 11. Rb1 {[%emt 0:07:47]} Bh6 {[%emt 0:00:09]} 12. e3 {[%emt 0:57:20]} Qd3 {[%emt 0:04:52]} 13. Qxd3 {[%emt 0:00:00]} Rxd3 {[%emt 0:00:03]} 14. b3 {[%emt 0:00:00]} Bf5 {[%emt 0:18:16]} 15. Nf3 {[%emt 0:00:00]} Rdd8 {[%emt 0:08:32]} 16. Ra1 {[%emt 0:00:00]} Bg7 {[%emt 0:01:47]} 17. Bb2 {[%emt 0:00:00]} h6 {[%emt 0:00:19]} 18. Rad1 {[%emt 0:00:00]} c5 {[%emt 0:02:53]} 19. h3 {[%emt 0:00:00]} Bc2 {[%emt 0:01:13]} 20. Rc1 {[%emt 0:00:00]} Be4 {[%emt 0:00:25]} 21. Rfd1 {[%emt 0:00:00]} Rhg8 {[%emt 0:03:11]} 22. Bc3 {[%emt 0:00:00]} Nd7 {[%emt 0:02:43]} 23. Bxg7 {[%emt 0:00:00]} Rxg7 {[%emt 0:00:01]} 24. Ne1 {[%emt 0:00:00]} Bxg2 {[%emt 0:00:49]} 25. Nxg2 {[%emt 0:00:00]} Rgg8 {[%emt 0:00:24]} 26. Rd5 {[%emt 0:00:00]} e6 {[%emt 0:00:35]} 27. Rd6 {[%emt 0:00:00]} Nf6 {[%emt 0:00:37]} 28. Rcd1 {[%emt 0:00:00]} Rxd6 {[%emt 0:01:33]} 29. Rxd6 {[%emt 0:00:00]} Nd5 {[%emt 0:01:34]} 30. e4 {[%emt 0:00:00]} Nc3 {[%emt 0:00:20]} 31. e5 {[%emt 0:00:00]} Nxa2 {[%emt 0:00:03]} 32. Rd3 {[%emt 0:00:00]} Rd8 {[%emt 0:02:20]} 33. Rf3 {[%emt 0:00:00]} Rd7 {[%emt 0:00:00]} 34. Ne1 {[%emt 0:00:00]} Nb4 {[%emt 0:01:10]} 35. Re3 {[%emt 0:04:21]} Rd1 {[%emt 0:00:41]} 36. Kg2 {[%emt 0:00:14]} Kd7 {[%emt 0:00:42]} 37. h4 {[%emt 0:00:51]} Ke7 {[%emt 0:00:12]} 38. g4 {[%emt 0:00:25]} b6 {[%emt 0:00:43]} 39. Kg3 {[%emt 0:02:16]} a5 {[%emt 0:00:10]} 40. f4 {[%emt 0:05:53]} Rd4 {[%emt 0:01:35]} 41. Rc3 {[%emt 0:28:28]} h5 {[%emt 0:30:14]} 42. gxh5 {[%emt 0:00:29]} gxh5 {[%emt 0:00:01]} 43. Nf3 {[%emt 0:01:54]} Rd3 {[%emt 0:02:38]} 44. Rxd3 {[%emt 0:00:19]} Nxd3 {[%emt 0:00:01]} 45. Nd2 {[%emt 0:00:13]} f6 {[%emt 0:00:24]} 46. exf6+ {[%emt 0:00:22]} Kxf6 {[%emt 0:00:01]} 47. Ne4+ {[%emt 0:00:22]} Kf5 {[%emt 0:03:33]} 48. Nd6+ {[%emt 0:00:19]} Kg6 {[%emt 0:00:07]} 49. Nc8 {[%emt 0:00:00]} Nc1 {[%emt 0:00:00]} 50. Nxb6 {[%emt 0:00:00]} Nxb3 {[%emt 0:00:00]} 51. Na4 {[%emt 0:00:00]} Kf5 {[%emt 0:00:00]} 52. Kf3 {[%emt 0:00:00]} Nd2+ {[%emt 0:00:00]} 53. Ke2 {[%emt 0:00:00]} Nxc4 {[%emt 0:00:00]} 54. Kd3 {[%emt 0:00:00]} Nd6 {[%emt 0:00:00]} 55. Nxc5 {[%emt 0:00:00]} Kxf4 {[%emt 0:00:00]} 56. Nxe6+ {[%emt 0:00:00]} Kg4 {[%emt 0:00:00]} 57. Kd4 {[%emt 0:00:00]} Kxh4 {[%emt 0:00:00]} 58. Kc5 {[%emt 0:00:00]} Nb7+ {[%emt 0:00:00]} 59. Kc6 {[%emt 0:00:00]} Kg4 {[%emt 0:00:00]} 60. Kxb7 {[%emt 0:00:00]} h4 {[%emt 0:00:00]} 61. Kb6 {[%emt 0:00:00]} h3 {[%emt 0:00:00]} 62. Kxa5 {[%emt 0:00:00]} h2 {[%emt 0:00:00]} 63. Nc5 {[%emt 0:00:00]} h1=Q {[%emt 0:00:00]} 64. Kb5 {[%emt 0:00:00]} Kf5 {[%emt 0:00:00]} 65. Kc4 {[%emt 0:00:00]} Qc6 {[%emt 0:00:00]} 66. Kd4 {[%emt 0:00:00]} Qd6+ {[%emt 0:00:00]} 67. Kc4 {[%emt 0:00:00]} Ke5 {[%emt 0:00:00]} 68. Nd3+ {[%emt 0:00:00]} Ke4 {[%emt 0:00:00]} 69. Nc5+ {[%emt 0:00:00]} Ke3 {[%emt 0:00:00]} 70. Nb3 {[%emt 0:00:00]} Qd3+ {[%emt 0:00:00]} 71. Kb4 {[%emt 0:00:00]} Qc2 {[%emt 0:00:00]} 72. Nc5 {[%emt 0:00:00]} Kd4 {[%emt 0:00:00]} 73. Nb3+ {[%emt 0:00:00]} Kd5 {[%emt 0:00:00]} 74. Na1 {[%emt 0:00:00]} Qc4+ {[%emt 0:00:00]} 75. Ka3 {[%emt 0:00:00]} Kd4 {[%emt 0:00:00]} 76. Nb3+ {[%emt 0:00:00]} Kc3 {[%emt 0:00:00]} 0-1

[Event "AUT Bundesliga 2024-25"]
[Site "Austria"]
[Date "2025.04.04"]
[Round "8.2"]
[White "Costa, Leonardo"]
[Black "Kozul, Zdenko"]
[Result "1-0"]
[Annotator "RC"]
[ECO "B67"]
[WhiteElo "2510"]
[BlackElo "2507"]
[PlyCount "79"]
[EventDate "2024.08.28"]
[EventType "team-tourn"]
[EventCountry "AUT"]
[SourceTitle "playchess.com"]
[Source "ChessBase"]
[SourceQuality "1"]
[TimeControl "40/5400+30:1800+30"]

1. e4 {[%emt 0:00:02]} c5 {[%emt 0:00:08]} 2. Nf3 {[%emt 0:00:03]} d6 {[%emt 0:00:41]} 3. d4 {[%emt 0:00:04]} cxd4 {[%emt 0:00:05]} 4. Nxd4 {[%emt 0:00:03]} Nf6 {[%emt 0:00:09]} 5. Nc3 {[%emt 0:00:03]} Nc6 {[%emt 0:01:41]} 6. Bg5 {[%emt 0:00:08]} e6 {[%emt 0:00:10]} 7. Qd2 {[%emt 0:00:05]} a6 {[%emt 0:00:47]} 8. O-O-O {[%emt 0:00:06]} Bd7 {[%emt 0:00:07]} 9. Kb1 {[%emt 0:00:05]} Nxd4 {[%emt 0:07:43]} 10. Qxd4 {[%emt 0:00:04]} Be7 {[%emt 0:00:07]} 11. f3 {[%emt 0:00:03]} O-O {[%emt 0:05:12]} 12. h4 {[%emt 0:10:33]} h6 {[%emt 0:10:43]} 13. Be3 {[%emt 0:06:02]} h5 {[%emt 0:00:09]} 14. Bg5 {[%emt 0:04:31]} Qc7 {[%emt 0:12:58]} 15. g4 {[%emt 0:06:11]} hxg4 {[%emt 0:05:57]} 16. h5 {[%emt 0:00:04]} e5 {[%emt 0:01:27]} 17. Qf2 {[%emt 0:04:23]} Kh7 {[%emt 0:08:44]} 18. f4 {[%emt 0:22:26]} Bc6 {[%emt 0:10:18]} 19. fxe5 {[%emt 0:01:01]} Nxe4 {[%emt 0:00:41]} 20. Qf5+ {[%emt 0:01:23]} Kg8 {[%emt 0:03:45]} 21. Nxe4 {[%emt 0:00:21]} Bxe4 {[%emt 0:02:57]} 22. Qxe4 {[%emt 0:00:03]} Bxg5 {[%emt 0:00:06]} 23. Bd3 {[%emt 0:04:49]} f5 {[%emt 0:00:59]} 24. exf6 {[%emt 0:00:03]} gxf6 {[%emt 0:00:11]} 25. Qxg4 {[%emt 0:14:26]} Kh8 {[%emt 0:04:16]} 26. h6 {[%emt 0:00:18]} Rae8 {[%emt 0:04:12]} 27. a3 {[%emt 0:01:08]} Re5 {[%emt 0:00:32]} 28. Bc4 {[%emt 0:12:56]} Qe7 {[%emt 0:03:46]} 29. Bb3 {[%emt 0:00:40]} f5 {[%emt 0:08:31]} 30. Qf3 {[%emt 0:02:51]} f4 {[%emt 0:00:38]} 31. h7 {[%emt 0:00:02]} b5 {[%emt 0:02:28]} 32. Rh3 {[%emt 0:10:53]} a5 {[%emt 0:00:55]} 33. Qc6 {[%emt 0:00:23]} Rc5 {[%emt 0:04:52]} 34. Qg2 {[%emt 0:00:25]} Qe5 {[%emt 0:00:22]} 35. Bd5 {[%emt 0:00:26]} b4 {[%emt 0:00:15]} 36. a4 {[%emt 0:00:40]} Rcc8 {[%emt 0:01:25]} 37. Rh5 {[%emt 0:00:10]} Rf5 {[%emt 0:00:19]} 38. Qg4 {[%emt 0:00:55]} Rcf8 {[%emt 0:00:41]} 39. Rd3 {[%emt 0:00:26]} f3 {[%emt 0:00:26]} 40. Rxf3 {[%emt 0:00:42]} 1-0

[Event "AUT Bundesliga 2024-25"]
[Site "Austria"]
[Date "2025.04.04"]
[Round "8.10"]
[White "Hracek, Zbynek"]
[Black "Korpa, Bence"]
[Result "1-0"]
[Annotator "RC"]
[ECO "B00"]
[WhiteElo "2538"]
[BlackElo "2543"]
[PlyCount "77"]
[EventDate "2024.08.28"]
[EventType "team-tourn"]
[EventCountry "AUT"]
[SourceTitle "playchess.com"]
[Source "ChessBase"]
[SourceQuality "1"]
[TimeControl "40/5400+30:1800+30"]

1. e4 {[%emt 0:00:04]} Nc6 {[%emt 0:00:13]} 2. Nf3 {[%emt 0:00:07]} d6 {[%emt 0:00:15]} 3. d4 {[%emt 0:00:21]} Nf6 {[%emt 0:00:08]} 4. Nc3 {[%emt 0:00:05]} g6 {[%emt 0:00:11]} 5. Be3 {[%emt 0:01:03]} a6 {[%emt 0:04:58]} 6. Qd2 {[%emt 0:01:31]} b5 {[%emt 0:00:48]} 7. Bd3 {[%emt 0:12:02]} Ng4 {[%emt 0:06:54]} 8. Bg5 {[%emt 0:01:37]} h6 {[%emt 0:00:53]} 9. Bh4 {[%emt 0:00:54]} Bg7 {[%emt 0:24:30]} 10. h3 {[%emt 0:05:26]} Nf6 {[%emt 0:00:06]} 11. e5 {[%emt 0:06:49]} Nh5 {[%emt 0:04:11]} 12. g4 {[%emt 0:05:20]} dxe5 {[%emt 0:16:12]} 13. dxe5 {[%emt 0:14:31]} b4 {[%emt 0:02:00]} 14. O-O-O {[%emt 0:02:26]} bxc3 {[%emt 0:07:20]} 15. Qxc3 {[%emt 0:00:09]} Qd5 {[%emt 0:00:29]} 16. Bxa6 {[%emt 0:12:29]} Qe4 {[%emt 0:05:41]} 17. Bb5 {[%emt 0:01:45]} O-O {[%emt 0:14:51]} 18. Bxc6 {[%emt 0:00:57]} Qf4+ {[%emt 0:00:37]} 19. Kb1 {[%emt 0:00:59]} Be6 {[%emt 0:03:20]} 20. b3 {[%emt 0:00:18]} g5 {[%emt 0:00:49]} 21. Rd4 {[%emt 0:03:04]} Bxe5 {[%emt 0:00:26]} 22. Nxe5 {[%emt 0:00:06]} Qxe5 {[%emt 0:00:06]} 23. gxh5 {[%emt 0:00:11]} Rad8 {[%emt 0:01:30]} 24. Rhd1 {[%emt 0:09:34]} gxh4 {[%emt 0:00:14]} 25. Rg4+ {[%emt 0:02:00]} Bxg4 {[%emt 0:00:10]} 26. Qxe5 {[%emt 0:00:02]} Rxd1+ {[%emt 0:00:21]} 27. Kb2 {[%emt 0:00:02]} Bxh3 {[%emt 0:01:52]} 28. Qxe7 {[%emt 0:00:18]} Bf5 {[%emt 0:02:32]} 29. Qf6 {[%emt 0:03:17]} Bh7 {[%emt 0:00:49]} 30. Qxh4 {[%emt 0:01:22]} Rfd8 {[%emt 0:00:12]} 31. Be4 {[%emt 0:01:42]} Bxe4 {[%emt 0:00:13]} 32. Qxe4 {[%emt 0:00:02]} R1d5 {[%emt 0:00:18]} 33. Qh4 {[%emt 0:02:06]} R8d6 {[%emt 0:00:21]} 34. a4 {[%emt 0:00:08]} Kf8 {[%emt 0:02:26]} 35. Qg4 {[%emt 0:01:08]} Re6 {[%emt 0:00:51]} 36. a5 {[%emt 0:01:33]} Rg5 {[%emt 0:00:53]} 37. Qc4 {[%emt 0:02:31]} Kg8 {[%emt 0:00:18]} 38. Qxc7 {[%emt 0:01:38]} Rxh5 {[%emt 0:00:06]} 39. a6 {[%emt 0:03:08]} 1-0

[Event "AUT Bundesliga 2024-25"]
[Site "Austria"]
[Date "2025.04.04"]
[Round "8.11"]
[White "Subelj, Jan"]
[Black "Stalmach, Richard"]
[Result "1-0"]
[Annotator "RC"]
[ECO "B96"]
[WhiteElo "2528"]
[BlackElo "2427"]
[PlyCount "159"]
[EventDate "2024.08.28"]
[EventType "team-tourn"]
[EventCountry "AUT"]
[SourceTitle "playchess.com"]
[Source "ChessBase"]
[SourceQuality "1"]
[TimeControl "40/5400+30:1800+30"]

1. e4 {[%emt 0:00:58]} c5 {[%emt 0:00:07]} 2. Nf3 {[%emt 0:00:09]} d6 {[%emt 0:00:05]} 3. d4 {[%emt 0:00:11]} cxd4 {[%emt 0:00:04]} 4. Nxd4 {[%emt 0:00:05]} Nf6 {[%emt 0:00:04]} 5. Nc3 {[%emt 0:00:10]} a6 {[%emt 0:00:05]} 6. Bg5 {[%emt 0:00:50]} e6 {[%emt 0:00:25]} 7. f4 {[%emt 0:00:48]} h6 {[%emt 0:00:06]} 8. Bh4 {[%emt 0:00:26]} Qb6 {[%emt 0:00:07]} 9. a3 {[%emt 0:00:30]} Nc6 {[%emt 0:00:12]} 10. Bf2 {[%emt 0:02:10]} Qc7 {[%emt 0:00:05]} 11. Qf3 {[%emt 0:02:11]} e5 {[%emt 0:00:08]} 12. Nf5 {[%emt 0:10:41]} Bxf5 {[%emt 0:00:10]} 13. exf5 {[%emt 0:00:05]} O-O-O {[%emt 0:01:10]} 14. O-O-O {[%emt 0:05:39]} d5 {[%emt 0:00:05]} 15. fxe5 {[%emt 0:03:20]} Nxe5 {[%emt 0:00:04]} 16. Qh3 {[%emt 0:00:07]} Neg4 {[%emt 0:06:33]} 17. Bg3 {[%emt 0:08:27]} Bd6 {[%emt 0:00:14]} 18. Be2 {[%emt 0:00:04]} Bxg3 {[%emt 0:08:43]} 19. Bxg4 {[%emt 0:00:04]} Qf4+ {[%emt 0:00:11]} 20. Kb1 {[%emt 0:00:07]} Qxg4 {[%emt 0:00:05]} 21. hxg3 {[%emt 0:02:09]} d4 {[%emt 0:01:14]} 22. Qxg4 {[%emt 0:02:58]} Nxg4 {[%emt 0:07:06]} 23. Rh4 {[%emt 0:00:05]} h5 {[%emt 0:17:46]} 24. Ne2 {[%emt 0:01:26]} g5 {[%emt 0:01:14]} 25. fxg6 {[%emt 0:01:19]} fxg6 {[%emt 0:00:06]} 26. Rd2 {[%emt 0:09:26]} Rhf8 {[%emt 0:04:56]} 27. Nxd4 {[%emt 0:49:35]} Rf1+ {[%emt 0:00:04]} 28. Ka2 {[%emt 0:00:00]} Re1 {[%emt 0:03:17]} 29. c3 {[%emt 0:00:00]} Rde8 {[%emt 0:00:21]} 30. Rh3 {[%emt 0:00:00]} Kb8 {[%emt 0:09:32]} 31. Kb3 {[%emt 0:00:00]} Ka7 {[%emt 0:00:19]} 32. Rh4 {[%emt 0:00:00]} R8e3 {[%emt 0:01:27]} 33. Rh3 {[%emt 0:00:00]} Nf6 {[%emt 0:06:36]} 34. Rf2 {[%emt 0:00:00]} Ne4 {[%emt 0:00:25]} 35. Rf4 {[%emt 0:00:00]} Rg1 {[%emt 0:02:12]} 36. g4 {[%emt 0:00:00]} Nd2+ {[%emt 0:05:54]} 37. Kb4 {[%emt 0:00:00]} Re5 {[%emt 0:02:24]} 38. gxh5 {[%emt 0:00:00]} gxh5 {[%emt 0:09:35]} 39. Rf7 {[%emt 0:00:00]} a5+ {[%emt 0:03:37]} 40. Ka4 {[%emt 0:00:00]} Ka6 {[%emt 0:04:10]} 41. Rg3 {[%emt 0:19:56]} b5+ {[%emt 0:22:39]} 42. Nxb5 {[%emt 0:00:00]} Rxb5 {[%emt 0:00:04]} 43. Rgg7 {[%emt 0:00:00]} Rb8 {[%emt 0:00:43]} 44. Ra7+ {[%emt 0:00:00]} Kb6 {[%emt 0:00:07]} 45. Rad7 {[%emt 0:00:00]} Nb3 {[%emt 0:04:14]} 46. Kxb3 {[%emt 0:00:00]} Kc6+ {[%emt 0:00:03]} 47. Kc4 {[%emt 0:00:00]} Rxg2 {[%emt 0:05:56]} 48. Rc7+ {[%emt 0:00:00]} Kd6 {[%emt 0:00:46]} 49. Rgd7+ {[%emt 0:00:00]} Ke6 {[%emt 0:00:14]} 50. b4 {[%emt 0:00:00]} Rg4+ {[%emt 0:02:45]} 51. Kc5 {[%emt 0:00:00]} Rg5+ {[%emt 0:01:24]} 52. Kc6 {[%emt 0:00:00]} Rgb5 {[%emt 0:01:04]} 53. Rd6+ {[%emt 0:00:00]} Ke5 {[%emt 0:00:20]} 54. Re7+ {[%emt 0:00:00]} Kf4 {[%emt 0:00:01]} 55. Rd4+ {[%emt 0:00:00]} Kf3 {[%emt 0:00:26]} 56. Ra7 {[%emt 0:00:00]} axb4 {[%emt 0:00:43]} 57. axb4 {[%emt 0:01:18]} Rf5 {[%emt 0:00:02]} 58. Ra1 {[%emt 0:01:21]} Rg5 {[%emt 0:02:06]} 59. Ra5 {[%emt 0:03:18]} Rg6+ {[%emt 0:04:24]} 60. Kc7 {[%emt 0:01:41]} Rh8 {[%emt 0:00:04]} 61. Rf5+ {[%emt 0:00:05]} Kg3 {[%emt 0:00:34]} 62. Rd3+ {[%emt 0:00:50]} Kg2 {[%emt 0:00:01]} 63. Rd2+ {[%emt 0:00:05]} Kg3 {[%emt 0:00:04]} 64. b5 {[%emt 0:09:14]} h4 {[%emt 0:00:09]} 65. Rf1 {[%emt 0:00:07]} Rg7+ {[%emt 0:01:56]} 66. Kb6 {[%emt 0:00:58]} Rb8+ {[%emt 0:00:27]} 67. Ka5 {[%emt 0:00:06]} Rc7 {[%emt 0:00:55]} 68. Kb4 {[%emt 0:00:30]} Rbc8 {[%emt 0:00:34]} 69. Rd3+ {[%emt 0:00:12]} Kg4 {[%emt 0:00:22]} 70. Rd4+ {[%emt 0:01:05]} Kg3 {[%emt 0:00:12]} 71. c4 {[%emt 0:01:01]} h3 {[%emt 0:00:01]} 72. Rd3+ {[%emt 0:00:38]} Kg4 {[%emt 0:00:03]} 73. Rg1+ {[%emt 0:01:02]} Kf5 {[%emt 0:00:58]} 74. Rd5+ {[%emt 0:00:34]} Ke4 {[%emt 0:00:09]} 75. Rg4+ {[%emt 0:00:37]} Kf3 {[%emt 0:00:01]} 76. Rh4 {[%emt 0:00:06]} h2 {[%emt 0:00:13]} 77. Rd3+ {[%emt 0:00:09]} Kg2 {[%emt 0:01:22]} 78. Rd2+ {[%emt 0:00:04]} Kg3 {[%emt 0:00:03]} 79. Rdxh2 {[%emt 0:00:04]} Rc5 {[%emt 0:00:03]} 80. R2h3+ {[%emt 0:00:18]} 1-0

[Event "AUT Bundesliga 2024-25"]
[Site "Austria"]
[Date "2025.04.04"]
[Round "8.16"]
[White "Sebenik, Matej"]
[Black "Hacker, Jonas"]
[Result "1-0"]
[Annotator "RC"]
[ECO "A13"]
[WhiteElo "2491"]
[BlackElo "2370"]
[PlyCount "73"]
[EventDate "2024.08.28"]
[EventType "team-tourn"]
[EventCountry "AUT"]
[SourceTitle "playchess.com"]
[Source "ChessBase"]
[SourceQuality "1"]
[TimeControl "40/5400+30:1800+30"]

1. c4 {[%emt 0:00:06]} Nf6 {[%emt 0:00:53]} 2. Nf3 {[%emt 0:00:28]} e6 {[%emt 0:00:22]} 3. g3 {[%emt 0:00:18]} d5 {[%emt 0:00:08]} 4. Bg2 {[%emt 0:00:05]} dxc4 {[%emt 0:00:35]} 5. Qa4+ {[%emt 0:00:27]} Bd7 {[%emt 0:00:56]} 6. Qxc4 {[%emt 0:00:05]} c5 {[%emt 0:00:15]} 7. O-O {[%emt 0:07:27]} Bc6 {[%emt 0:09:41]} 8. Nc3 {[%emt 0:04:52]} Nbd7 {[%emt 0:03:04]} 9. e4 {[%emt 0:09:08]} Rc8 {[%emt 0:05:51]} 10. Qe2 {[%emt 0:01:58]} e5 {[%emt 0:06:06]} 11. d3 {[%emt 0:00:05]} g6 {[%emt 0:01:57]} 12. Bh3 {[%emt 0:22:03]} Bg7 {[%emt 0:04:28]} 13. a3 {[%emt 0:00:08]} a5 {[%emt 0:04:50]} 14. a4 {[%emt 0:03:17]} O-O {[%emt 0:01:49]} 15. Nd2 {[%emt 0:00:06]} Qc7 {[%emt 0:04:47]} 16. Nc4 {[%emt 0:00:18]} b6 {[%emt 0:04:35]} 17. Bg5 {[%emt 0:04:48]} Rb8 {[%emt 0:08:35]} 18. f4 {[%emt 0:04:11]} h6 {[%emt 0:08:20]} 19. Bxf6 {[%emt 0:11:52]} Bxf6 {[%emt 0:00:47]} 20. f5 {[%emt 0:00:04]} Bg5 {[%emt 0:06:15]} 21. fxg6 {[%emt 0:00:43]} fxg6 {[%emt 0:00:08]} 22. Be6+ {[%emt 0:00:03]} Kg7 {[%emt 0:01:09]} 23. h4 {[%emt 0:00:05]} Rxf1+ {[%emt 0:02:20]} 24. Rxf1 {[%emt 0:00:07]} Bf6 {[%emt 0:00:06]} 25. Bd5 {[%emt 0:06:20]} Bxa4 {[%emt 0:08:14]} 26. Qg4 {[%emt 0:11:29]} Nf8 {[%emt 0:02:27]} 27. Nxa4 {[%emt 0:02:28]} b5 {[%emt 0:00:16]} 28. Ne3 {[%emt 0:09:04]} bxa4 {[%emt 0:01:32]} 29. Nf5+ {[%emt 0:00:02]} Kh7 {[%emt 0:04:11]} 30. Nxh6 {[%emt 0:00:02]} Qb6 {[%emt 0:07:15]} 31. Ng8 {[%emt 0:01:20]} Bg7 {[%emt 0:03:12]} 32. h5 {[%emt 0:00:17]} c4+ {[%emt 0:00:49]} 33. Kh1 {[%emt 0:00:23]} Qe3 {[%emt 0:00:35]} 34. hxg6+ {[%emt 0:00:25]} Nxg6 {[%emt 0:00:18]} 35. Qh5+ {[%emt 0:01:03]} Bh6 {[%emt 0:00:03]} 36. Nxh6 {[%emt 0:00:20]} Nf4 {[%emt 0:01:02]} 37. gxf4 {[%emt 0:00:20]} 1-0

[Event "AUT Bundesliga 2024-25"]
[Site "Austria"]
[Date "2025.04.04"]
[Round "8.19"]
[White "Kadric, Denis"]
[Black "Dragnev, Valentin"]
[Result "1/2-1/2"]
[Annotator "RC"]
[ECO "C11"]
[WhiteElo "2533"]
[BlackElo "2538"]
[PlyCount "104"]
[EventDate "2024.08.28"]
[EventType "team-tourn"]
[EventCountry "AUT"]
[SourceTitle "playchess.com"]
[Source "ChessBase"]
[SourceQuality "1"]
[TimeControl "40/5400+30:1800+30"]

1. e4 {[%emt 0:00:02]} e6 {[%emt 0:00:06]} 2. d4 {[%emt 0:00:09]} d5 {[%emt 0:00:06]} 3. Nc3 {[%emt 0:02:00]} Nf6 {[%emt 0:00:14]} 4. e5 {[%emt 0:00:02]} Nfd7 {[%emt 0:00:09]} 5. Nce2 {[%emt 0:00:02]} c5 {[%emt 0:00:09]} 6. c3 {[%emt 0:00:01]} Nc6 {[%emt 0:00:08]} 7. Nf3 {[%emt 0:00:03]} Be7 {[%emt 0:00:13]} 8. h4 {[%emt 0:00:40]} cxd4 {[%emt 0:00:35]} 9. cxd4 {[%emt 0:00:03]} f6 {[%emt 0:00:17]} 10. Nf4 {[%emt 0:00:18]} Ndxe5 {[%emt 0:00:26]} 11. dxe5 {[%emt 0:00:03]} fxe5 {[%emt 0:00:12]} 12. Nh3 {[%emt 0:00:02]} O-O {[%emt 0:00:35]} 13. Be2 {[%emt 0:00:18]} e4 {[%emt 0:00:38]} 14. Nh2 {[%emt 0:00:03]} e5 {[%emt 0:00:36]} 15. O-O {[%emt 0:01:05]} Bxh3 {[%emt 0:00:52]} 16. gxh3 {[%emt 0:00:03]} Bxh4 {[%emt 0:00:10]} 17. f3 {[%emt 0:00:01]} exf3 {[%emt 0:00:17]} 18. Bxf3 {[%emt 0:01:30]} e4 {[%emt 0:00:12]} 19. Bg2 {[%emt 0:01:20]} Qd6 {[%emt 0:00:12]} 20. Kh1 {[%emt 0:03:05]} Bg3 {[%emt 0:00:26]} 21. Rxf8+ {[%emt 0:12:28]} Rxf8 {[%emt 0:00:59]} 22. Nf1 {[%emt 0:00:03]} Be5 {[%emt 0:07:29]} 23. Bd2 {[%emt 0:08:26]} Nd4 {[%emt 0:37:22]} 24. Bc3 {[%emt 0:15:48]} Ne6 {[%emt 0:03:46]} 25. Qd2 {[%emt 0:30:49]} Bf4 {[%emt 0:24:03]} 26. Qe2 {[%emt 0:04:46]} d4 {[%emt 0:07:09]} 27. Rd1 {[%emt 0:05:06]} Qb6 {[%emt 0:00:25]} 28. Qxe4 {[%emt 0:07:07]} dxc3 {[%emt 0:00:28]} 29. bxc3 {[%emt 0:00:02]} Nc5 {[%emt 0:10:59]} 30. Qe7 {[%emt 0:07:53]} Rc8 {[%emt 0:00:15]} 31. Rd4 {[%emt 0:02:08]} Qc7 {[%emt 0:01:23]} 32. Qe2 {[%emt 0:00:11]} Kh8 {[%emt 0:01:34]} 33. c4 {[%emt 0:00:19]} Rf8 {[%emt 0:00:47]} 34. Rd5 {[%emt 0:00:58]} b6 {[%emt 0:00:10]} 35. Rf5 {[%emt 0:00:28]} Qc8 {[%emt 0:03:03]} 36. Rxf8+ {[%emt 0:00:26]} Qxf8 {[%emt 0:00:01]} 37. Bd5 {[%emt 0:00:11]} g6 {[%emt 0:00:59]} 38. Kg2 {[%emt 0:00:34]} Kg7 {[%emt 0:00:16]} 39. Kf3 {[%emt 0:00:47]} Qf6 {[%emt 0:01:31]} 40. Kg2 {[%emt 0:00:38]} Qg5+ {[%emt 0:00:21]} 41. Kf2 {[%emt 0:00:38]} Be5 {[%emt 0:04:19]} 42. Qf3 {[%emt 0:03:08]} Qc1 {[%emt 0:11:10]} 43. Qf7+ {[%emt 0:06:11]} Kh6 {[%emt 0:16:58]} 44. Ne3 {[%emt 0:00:01]} Qd2+ {[%emt 0:00:00]} 45. Kf3 {[%emt 0:00:07]} Qc3 {[%emt 0:00:00]} 46. Qf8+ {[%emt 0:04:37]} Bg7 {[%emt 0:00:57]} 47. Qf4+ {[%emt 0:00:05]} g5 {[%emt 0:00:05]} 48. Qf5 {[%emt 0:00:05]} Bd4 {[%emt 0:00:29]} 49. Qf8+ {[%emt 0:03:04]} Bg7 {[%emt 0:00:01]} 50. Qf5 {[%emt 0:00:09]} Bd4 {[%emt 0:00:05]} 51. Qf8+ {[%emt 0:00:29]} Bg7 {[%emt 0:00:01]} 52. Qf5 {[%emt 0:00:03]} Bd4 {[%emt 0:02:52]} 1/2-1/2